Cogmind - Beta 16 @@@ ROGUE MODE // 2025.11.03 @ 05:21:54 Player: Cmdr.Laserstrahl Result: Destroyed by Y-54 Guardian with Flak Gun Performance ------------- Evolutions (3) 1500 Regions Visited (5) 1000 Robots Destroyed (43) 215 Value Destroyed (1323) 1323 Prototype IDs (0) 0 Alien Tech Used (0) 0 Bonus (200) 200 TOTAL SCORE: 4238 Bonus ------- Entered Garrisons 200 Cogmind --------- Core Integrity 0/700 Matter 283/300 Energy 73/100 System Corruption 0% Temperature Cool (12) Movement Core (50) Location -7/Garrison Parts ------- > --- POWER (1) -------- (None) > --- PROPULSION (3) --- (None) > --- UTILITY (7) ------ Advanced Visual Processing Unit > --- WEAPON (2) ------- (None) > --- INVENTORY (5) ---- Compact Matter Pod (150) Particle Charger Pulse Rifle Pulse Rifle Heavy Ion Cannon Peak State ------------ > --- POWER ------------ Light Deuterium Engine > --- PROPULSION ------- Improved Treads Advanced Treads Titanium Leg > --- UTILITY ---------- Medium Storage Unit Advanced Visual Processing Unit Seismic Detector Melee Analysis Suite Actuator Array Improved Medium Armor Plating Thermal Shield > --- WEAPON ----------- Mace Katana > --- INVENTORY -------- Compact Matter Pod Terrain Scanner Advanced Targeting Computer Particle Charger ECM Suite Pulse Rifle Pulse Rifle Heavy Ion Cannon [Rating: 38] Favorites ----------- Power Light Deuterium Engine Engine Light Deuterium Engine Propulsion Light Treads Treads Light Treads Leg Titanium Leg Wheel Wheel Utility Advanced Visual Processing Unit Device Seismic Detector Storage Medium Storage Unit Processor Advanced Visual Processing Unit Hackware System Shield Protection Improved Light Armor Plating Weapon Mace Energy Gun Medium Laser Ballistic Gun Assault Rifle Special Weapon Mining Laser Impact Weapon Mace Slashing Weapon Katana Build | -11 -10 -9 -8 -7 -7 ------- Run | Yrd Mat Mat Mat Fac Gar Slots Evolved 6 | . . 2 2 2 . Power . | . . . . . . Propulsion 1 | . . 1 . . . Utility 5 | . . 1 2 2 . Weapon . | . . . . . . Parts Attached 54 | 7 3 15 24 1 4 Power 7 | 1 2 1 3 . . Engine 7 | 1 2 1 3 . . Core . | . . . . . . Reactor . | . . . . . . Propulsion 16 | 2 . 8 5 . 1 Treads 8 | 1 . 4 3 . . Leg 2 | . . . 1 . 1 Wheel 6 | 1 . 4 1 . . Hover . | . . . . . . Flight . | . . . . . . Utility 20 | 2 1 2 12 1 2 Device 9 | 1 . 1 5 1 1 Storage 4 | 1 1 . 2 . . Processor 2 | . . . 2 . . Hackware 1 | . . . 1 . . Protection 4 | . . 1 2 . 1 Artifact . | . . . . . . Weapon 11 | 2 . 4 4 . 1 Energy Gun 4 | 1 . 2 1 . . Energy Cannon . | . . . . . . Ballistic Gun 2 | 1 . 1 . . . Ballistic Cannon . | . . . . . . Launcher . | . . . . . . Special Weapon 1 | . . 1 . . . Impact Weapon 1 | . . . 1 . . Slashing Weapon 3 | . . . 2 . 1 Piercing Weapon . | . . . . . . Special Melee Weapon . | . . . . . . Unidentified Prototypes . | . . . . . . Parts Lost 35 | . 1 15 8 . 11 Power 4 | . 1 2 1 . . Propulsion 13 | . . 7 3 . 3 Utility 11 | . . 1 4 . 6 Weapon 7 | . . 5 . . 2 Highest Loss Streak 8 | . 1 6 7 . 8 To Critical Strikes . | . . . . . . Average Backups 7 | 4 8 6 6 9 9 Power . | . . . . . . Propulsion 1 | 2 4 2 . 1 . Utility 4 | . 1 2 5 5 5 Weapon 1 | 1 2 1 . 2 3 Tool/Special . | . . . . . . Unused Backups 9 | 1 . . 3 . 5 Power . | . . . . . . Propulsion 1 | 1 . . . . . Utility 4 | . . . 2 . 2 Weapon 4 | . . . 1 . 3 Tool/Special . | . . . . . . Average Slot Usage (%) 87 | . 97 82 77 99 93 Engine 6 | . 11 10 3 7 6 Treads 16 | . 14 14 15 23 19 Wheel 4 | . 14 15 1 . . Device 12 | . 14 10 11 15 15 Storage 8 | . 14 11 6 7 7 Processor 10 | . . . 13 15 15 Hackware 1 | . . . 4 . . Protection 7 | . . 3 7 14 11 Energy Gun 3 | . 14 9 1 . . Ballistic Gun 2 | . 14 6 . . . Impact Weapon 4 | . . . 5 7 6 Slashing Weapon 4 | . . . 5 7 6 Peak Build Rating 38 | 8 8 12 31 33 38 Average Rating 21 | 5 7 9 21 32 32 On Entrance 14 | . 8 8 10 29 33 Avg Prop Armor Cover (%) 15 | 13 12 19 20 . 5 Naked Turns . | . . . . . . Heaviest Build 36 | 13 28 29 36 30 35 Greatest Support 65 | 10 10 32 65 65 65 Greatest Overweight (x) 4 | 1 2 2 1 . 4 Average Overweight (x) . | . 1 . . . . Largest Inventory Capacity 15 | 8 15 15 15 10 10 Average Capacity 10 | 7 10 15 9 10 9 Most Carried 12 | 8 12 11 10 10 10 Average Carried 7 | 5 8 6 6 9 9 Final Capacity 15 | 8 15 15 10 10 5 Final Carried 12 | 8 12 3 10 10 5 Class Distribution -------------------- 53% | Gladiator 37% | Mutant 9% | Scavenger-Mutant Dominant Class ---------------- Mutant | -10/Materials Scavenger-Mutant | -9/Materials Gladiator | -8/Materials Gladiator | -7/Factory Gladiator | -7/Garrison Resources | -11 -10 -9 -8 -7 -7 ----------- Run | Yrd Mat Mat Mat Fac Gar Matter Collected 994 | 288 99 184 178 . 245 Remotely . | . . . . . . Salvage Created 1710 | 139 431 435 219 . 486 Parts 83 | 13 21 17 19 . 13 Haulers Intercepted 3 | . . 1 2 . . Recyclers Shooed 3 | . 2 1 . . . Parts Field Recycled . | . . . . . . Retrieved Matter . | . . . . . . Parts Self-Destructed . | . . . . . . Prevented . | . . . . . . Parts Restored . | . . . . . . Kills | -11 -10 -9 -8 -7 -7 ------- Run | Yrd Mat Mat Mat Fac Gar Combat Hostiles Destroyed 31 | . 5 8 8 . 10 Melee 14 | . . . 6 . 8 Guns 15 | . 5 8 2 . . Classes Destroyed 11 | 2 3 2 2 . 2 Tunneler 3 | 3 . . . . . Hauler 3 | . . 1 2 . . Recycler 3 | 1 2 . . . . Mechanic 2 | . 1 1 . . . Watcher 1 | . 1 . . . . Swarmer 7 | . . . 7 . . Saboteur 1 | . . . . . 1 Grunt 20 | . 5 7 . . 8 Brawler 1 | . . . 1 . . Duelist 1 | . . 1 . . . Hunter 1 | . . . . . 1 Best Kill Streak 5 | 4 5 4 4 . 3 Combat Bots Only 3 | . 3 3 3 . 3 Max Kills in Single Turn 1 | 1 1 1 1 . 1 Gunslinging . | . . . . . . Exploded . | . . . . . . Melee 1 | . . . 1 . 1 Uniques/NPCs Destroyed . | . . . . . . Combat | -11 -10 -9 -8 -7 -7 -------- Run | Yrd Mat Mat Mat Fac Gar Hostile Shots Fired 626 | . 38 155 99 . 334 Missed 214 | . 6 47 23 . 138 Hits 412 | . 32 108 76 . 196 Melee 12 | . . 8 1 . 3 Projectile 400 | . 32 100 75 . 193 Critical Strikes 6 | . . 4 . . 2 Damage Taken 4684 | . 367 1518 884 . 1915 Core 1371 | . 81 341 245 . 704 Absorbed by Shields 20 | . . . 20 . . Redirected to Shielding 157 | . . 36 39 . 82 Ignored by Resistances 20 | . . . . . 20 Core Remaining (%) 59 | 100 67 14 55 . . Volleys Fired 77 | 6 28 39 4 . . Largest 2 | 2 2 2 1 . . Hottest 140 | 70 70 140 50 . . Shots Fired 144 | 12 56 72 4 . . Gun 139 | 12 56 67 4 . . Cannon . | . . . . . . Launcher . | . . . . . . Special 5 | . . 5 . . . Kinetic 67 | 6 28 33 . . . Thermal 73 | 6 28 39 . . . Explosive . | . . . . . . Electromagnetic 4 | . . . 4 . . Robot Hit Streak 7 | 5 5 7 5 . . Robot Miss Streak 4 | 1 3 4 . . . Penetration Max . | . . . . . . Secondary Targets 2 | . 1 1 . . . Max Gunslinging Chain 1 | . 1 1 . . . Shots Hit Robots 140 | 8 31 44 19 . 38 Core Hits 63 | 5 19 22 9 . 8 Critical Kills 1 | . . . . . 1 Critical Parts Destroyed 3 | . . . 1 . 2 Critical Strikes 7 | . 1 1 2 . 3 Burn 2 | . 1 1 . . . Smash 4 | . . . 1 . 3 Sever 1 | . . . 1 . . Melee Attacks 96 | . . . 34 . 62 Thermal 6 | . . . . . 6 Impact 59 | . . . 19 . 40 Slashing 31 | . . . 15 . 16 Piercing . | . . . . . . Sneak Attacks 4 | . . . 4 . . Combat Hostiles . | . . . . . . Follow-up Attacks 14 | . . . 3 . 11 Damage Inflicted 2935 | 103 411 565 594 . 1262 Guns 1141 | 103 411 565 62 . . Cannons . | . . . . . . Explosions . | . . . . . . Melee 1794 | . . . 532 . 1262 Ramming . | . . . . . . Kinetic 630 | 66 250 314 . . . Thermal 449 | 37 161 251 . . . Explosive . | . . . . . . Electromagnetic 62 | . . . 62 . . Impact 1302 | . . . 314 . 988 Slashing 492 | . . . 218 . 274 Piercing . | . . . . . . Highest Corruption . | . . . . . . Average Corruption . | . . . . . . Corruption Purged . | . . . . . . Corruption Blocked . | . . . . . . Overload Shots . | . . . . . . Overflow Damage 244 | . . . 119 . 125 Projectiles . | . . . . . . Explosions . | . . . . . . Melee 244 | . . . 119 . 125 Knockbacks 3 | . . . . . 3 Impact 3 | . . . . . 3 Kinetic . | . . . . . . Secondary . | . . . . . . Self-Inflicted Damage . | . . . . . . Shots . | . . . . . . Rammed . | . . . . . . Targets Rammed . | . . . . . . Kicked . | . . . . . . Crushed . | . . . . . . Highest Temperature 164 | 38 164 124 . . 4 Average Temperature 44 | 13 62 33 . . 4 Received Heat Transfer 1887 | . 207 639 270 . 771 Siege Activations . | . . . . . . Martial Activations . | . . . . . . Shielding Activations . | . . . . . . Robots Disrupted . | . . . . . . Combat Hostiles . | . . . . . . Robots Corrupted 3 | . . . 1 . 2 Combat Hostiles 2 | . . . . . 2 Parts Fried 6 | . . . 2 . 4 Impact Corruptions 11 | . . . 4 . 7 Robots Melted . | . . . . . . Combat Hostiles . | . . . . . . Parts Melted . | . . . . . . Heat Transferred 1383 | 111 555 717 . . . Parts Sabotaged 10 | . . . . . 10 Parts Stolen . | . . . . . . Parts Stripped . | . . . . . . Power Chain Reactions . | . . . . . . Alert | -11 -10 -9 -8 -7 -7 ------- Run | Yrd Mat Mat Mat Fac Gar Maximum Alert Level 1 | . . . . . 1 Low Security (%) 90 | 100 100 100 100 100 65 Level 1 9 | . . . . . 34 Level 2 . | . . . . . . Level 3 . | . . . . . . Level 4 . | . . . . . . Level 5 . | . . . . . . High Security . | . . . . . . Max Security . | . . . . . . Peak Influence 263 | 5 102 67 78 28 263 Initial 28 | . 3 24 . 28 2 Average 55 | 1 46 29 14 5 152 Influence Increases 969 | 20 157 262 235 4 291 Destroy 0b10 Robot/C 620 | . 100 160 160 . 200 Destroy 0b10 Robot/NC 65 | 20 20 10 10 . 5 Destroy Leader 108 | . 22 32 34 . 20 Successful Hack 22 | . . 10 8 4 . Anti-Garrison Action 50 | . . . . . 50 Destroy Structure 14 | . . 5 8 . 1 Lose Combat Pursuer 90 | . 15 45 15 . 15 Influence Decreases 786 | 15 105 319 172 63 112 Entered New Map 72 | . 2 33 . 35 2 Time Decay 417 | 15 103 160 111 28 . Lost Part 289 | . . 126 53 . 110 Purge Threat 8 | . . . 8 . . Squads Dispatched 3 | . 1 1 1 . . Investigation . | . . . . . . Extermination . | . . . . . . Reinforcement 3 | . 1 1 1 . . Assault . | . . . . . . Garrison . | . . . . . . Intercept . | . . . . . . Searches Triggered . | . . . . . . Construction Impeded . | . . . . . . Haulers Reinforced . | . . . . . . Active Scanning Responses . | . . . . . . Cargo Convoy Interrupts . | . . . . . . Stealth | -11 -10 -9 -8 -7 -7 --------- Run | Yrd Mat Mat Mat Fac Gar Distress Signals 5 | . 2 3 . . . Communications Jammed . | . . . . . . Distress Signals . | . . . . . . Times Spotted 76 | . 10 28 22 . 16 Peak Tracking Total 10 | . 5 10 9 . 6 Tactical Retreats 7 | . 1 2 3 . 1 ECM-based Alert Blocks 7 | . . . 7 . . Traps | -11 -10 -9 -8 -7 -7 ------- Run | Yrd Mat Mat Mat Fac Gar Traps Triggered 1 | . . . . . 1 Indirectly . | . . . . . . Trap Hack Attempts . | . . . . . . Triggered . | . . . . . . Disarmed . | . . . . . . Reprogrammed . | . . . . . . Reused . | . . . . . . Traps Extracted . | . . . . . . Installed . | . . . . . . Triggered . | . . . . . . Machines | -11 -10 -9 -8 -7 -7 ---------- Run | Yrd Mat Mat Mat Fac Gar Machines Disabled 1 | . . . . . 1 Max in Single Turn 1 | . . . . . 1 Garrison Relay 1 | . . . . . 1 Machines Repaired . | . . . . . . Machines Dismantled . | . . . . . . Machines Sabotaged . | . . . . . . Overloaded Fab Kills . | . . . . . . Hacking | -11 -10 -9 -8 -7 -7 --------- Run | Yrd Mat Mat Mat Fac Gar Machines Accessed 9 | . 1 3 2 1 2 Terminals 8 | . 1 3 2 . 2 Fabricators . | . . . . . . Repair Stations . | . . . . . . Recycling Units . | . . . . . . Scanalyzers . | . . . . . . Garrison Access 1 | . . . . 1 . Total Hacks 27 | . 1 8 11 1 6 Successful 10 | . . 3 6 1 . Failed 16 | . 1 5 4 . 6 Catastrophic 3 | . 1 . 1 . 1 Database Lockouts 1 | . . . 1 . . Manual 20 | . 1 5 8 . 6 Terminals 26 | . 1 8 11 . 6 Fabricators . | . . . . . . Repair Stations . | . . . . . . Recycling Units . | . . . . . . Scanalyzers . | . . . . . . Garrison Access 1 | . . . . 1 . Terminal Hacks 6 | . . 1 5 . . Part Schematic 1 | . . . 1 . . Robot Analysis 1 | . . . 1 . . Emergency Access Points 1 | . . . 1 . . Terminal Index 1 | . . 1 . . . Unreport Threat 1 | . . . 1 . . Locate Traps 1 | . . . 1 . . Fabricator Hacks . | . . . . . . Repair Station Hacks . | . . . . . . Recycling Unit Hacks . | . . . . . . Scanalyzer . | . . . . . . Garrison Access Hacks 1 | . . . . 1 . Unlock Access 1 | . . . . 1 . Unauthorized Hacks 3 | . . 2 1 . . Terminals 3 | . . 2 1 . . Botnet 3 | . . 2 1 . . Fabricators . | . . . . . . Repair Stations . | . . . . . . Recycling Units . | . . . . . . Scanalyzers . | . . . . . . Garrison Access . | . . . . . . Data Cores Recovered . | . . . . . . Used . | . . . . . . Hacking Detections 8 | . . 3 2 1 2 Full Trace Events . | . . . . . . Feedback Events . | . . . . . . Feedback Blocked . | . . . . . . Robot Schematics Acquired . | . . . . . . Robots Built . | . . . . . . Authchips . | . . . . . . Time . | . . . . . . Total Robot Build Rating . | . . . . . . Part Schematics Acquired 1 | . . . 1 . . Parts Built . | . . . . . . Authchips . | . . . . . . Time . | . . . . . . Total Part Build Rating . | . . . . . . Part Studies Acquired . | . . . . . . Parts Repaired . | . . . . . . Time . | . . . . . . Parts Recycled . | . . . . . . Recycled Matter . | . . . . . . Retrieved Matter . | . . . . . . Retrieved Components . | . . . . . . Parts Scanalyzed . | . . . . . . Part Schematics Acquired . | . . . . . . Parts Damaged . | . . . . . . Bothacking | -11 -10 -9 -8 -7 -7 ------------ Run | Yrd Mat Mat Mat Fac Gar Used RIF Installer . | . . . . . . Robots Hacked . | . . . . . . Non-combat . | . . . . . . Combat . | . . . . . . Robot Hacks Applied . | . . . . . . Relay Couplers Released 5 | . . . . . 5 Machine Destruction 5 | . . . . . 5 Fabnet Peak Effective % . | . . . . . . Robots Rewired . | . . . . . . Allies Hacked . | . . . . . . Hacks Repelled . | . . . . . . Allies | -11 -10 -9 -8 -7 -7 -------- Run | Yrd Mat Mat Mat Fac Gar Total Allies . | . . . . . . Largest Group . | . . . . . . Highest-Rated Group . | . . . . . . Highest-Rated Ally . | . . . . . . Total Orders . | . . . . . . Ally Attacks . | . . . . . . Total Damage . | . . . . . . Kills . | . . . . . . Allies Corrupted . | . . . . . . Allies Melted . | . . . . . . Intel | -11 -10 -9 -8 -7 -7 ------- Run | Yrd Mat Mat Mat Fac Gar Active Infowar (turns) 1954 | 23 270 111 748 207 595 Optics 1370 | . . . 568 207 595 Sensors 180 | . . . 180 . . Terrain 145 | . . . 145 . . Seismic 1150 | 23 270 111 . 207 539 ECM 47 | . . . 43 . 4 Robot Analysis Total 1 | . . . 1 . . Derelict Logs Recovered . | . . . . . . Drone Launches . | . . . . . . Drone Recoveries . | . . . . . . Exploration | -11 -10 -9 -8 -7 -7 ------------- Run | Yrd Mat Mat Mat Fac Gar Turns Passed 2266 | 91 270 354 749 207 595 Spaces Moved 1354 | 62 157 191 551 105 288 Core 201 | 10 . . 175 . 16 Treads 633 | . . . 265 105 263 Legs 9 | . . . . . 9 Wheels 511 | 52 157 191 111 . . Hover . | . . . . . . Flight . | . . . . . . Fastest Speed 50 | 50 80 95 50 155 50 Average Speed 119 | 81 97 107 110 155 150 Slowest Speed 250 | 95 110 115 160 155 250 Overloaded Moves . | . . . . . . Propulsion Burnouts . | . . . . . . Robots Hopped . | . . . . . . Potential Cave-ins . | . . . . . . Cave-ins Triggered . | . . . . . . Exploration Rate (%) 28 | 6 38 38 42 3 44 Regions Visited 5 Branch Regions . Pre-discovered Areas . | . . . . . . Known Exits Taken 1 | . . . . 1 . Unknown Exits Taken 4 | 1 1 1 1 . . Scrap Searched . | . . . . . . Spaces Dug 13 | . . 4 8 . 1 Terrain Destroyed 14 | . . 5 8 . 1 Melee 9 | . . . 8 . 1 Projectile 5 | . . 5 . . . AOE . | . . . . . . Terrain Rammed . | . . . . . . Walls Destroyed . | . . . . . . Machines Disabled . | . . . . . . Actions | -11 -10 -9 -8 -7 -7 --------- Run | Yrd Mat Mat Mat Fac Gar Total 1714 | 89 217 256 639 149 364 Wait 83 | . 22 4 4 40 13 Move 1350 | 61 156 190 550 105 288 Hop . | . . . . . . Pick Up 56 | 14 6 6 21 2 7 Fast Attach 14 | 2 . . 11 . 1 Attach 43 | 5 1 15 11 2 9 Detach . | . . . . . . Swap 6 | . 2 2 2 . . Drop 15 | 1 2 . 11 . 1 Fire 77 | 6 28 39 4 . . Melee 70 | . . . 25 . 45 Ram . | . . . . . . Kick . | . . . . . . Crush . | . . . . . . Escape Stasis . | . . . . . . Rewire . | . . . . . . Trap . | . . . . . . Miscellaneous . | . . . . . . Route ------- -11/Scrapyard -10/Materials (discovered 2 exits: *Mat / [*Min]) -9/Materials (discovered 2 exits: *Mat / [*Min]) -8/Materials -7/Factory -7/Garrison (discovered 1 exit: [*Fac]) History --------- Turn | Location | Event 9 | -11/Scrapyard | Discovered new exit (range 16) 92 | -11/Scrapyard | Entered Materials 188 | -10/Materials | Discovered new exit (range 4) 272 | -10/Materials | Discovered new exit (range 16) 303 | -10/Materials | Build established: Mutant 362 | -10/Materials | Entered another Materials area 362 | -9/Materials | Evolved 2 slots: Propulsion x1, Utility x1 526 | -9/Materials | Core integrity fell below 50% 547 | -9/Materials | Lost 6 parts (1p3n1u1w) 547 | -9/Materials | Discovered new exit (range 14) 698 | -9/Materials | Lost 3 parts (2n1w) 699 | -9/Materials | Discovered new exit (range 16) 714 | -9/Materials | Core integrity fell below 20% 716 | -9/Materials | Entered another Materials area 716 | -8/Materials | Evolved 2 slots: Utility x2 736 | -8/Materials | Lost 3 parts (1p1n1w) 954 | -8/Materials | Lost 7 parts (1p2n4u) 970 | -8/Materials | Discovered new exit (range 3) 985 | -8/Materials | Central database locked down 1365 | -8/Materials | Build established: Gladiator 1465 | -8/Materials | Entered Factory 1465 | -7/Factory | Evolved 2 slots: Utility x2 1672 | -7/Factory | Identified exit to Garrison 1672 | -7/Factory | Entered Garrison 1736 | -7/Garrison | Triggered checkpoint 1781 | -7/Garrison | Garrison Relay disabled 1864 | -7/Garrison | Triggered checkpoint 2018 | -7/Garrison | Discovered new exit (range 15) 2219 | -7/Garrison | Core integrity fell below 50% 2263 | -7/Garrison | Core integrity fell below 20% 2267 | -7/Garrison | Destroyed by Y-54 Guardian with Flak Gun Last Messages --------------- 02205_ Adv. Treads destroyed. 02205_ Acquired Mace. 02206_ Actuator Array blown off. 02206_ Mace blown off. 02206_ E-15 Imp destroyed. 02209_ Acquired Titanium Leg. 02211_ Seismic Detector destroyed. 02213_ Acquired Mace. 02215_ Acquired Imp. Medium Armor Plating. 02219_ Acquired Segregator. 02226_ Acquired 13 matter. 02232_ Imp. Medium Armor Plating destroyed. 02234_ Mace follow-up attack on Y-54 Guardian. 02244_ Titanium Leg destroyed. 02255_ Segregator destroyed. 02260_ Dropped Med. Storage Unit. 02261_ Acquired ECM Suite. 02261_ Melee Analysis Suite destroyed. 02262_ Mace destroyed. 02265_ ECM Suite destroyed. Map ----- +----------------------------------------------------+ | ?????????????????????????????????" "? | | ?????????????????????????????????" "? | | ?????????????????????????????????" "? | | ?????????????????????????????????" "? | | ?????????????????????????????????# ## ## #? | | ?????????????????????????????????# ## ## ## | | ?????????????????????????????????# | | ?????????????????????????????????# | | ?????????????????????????????????# ## | | ?????????????????????????????????## ##""""## ##? | | ??????????????????????????????????# #??????? #?? | | ??????????????????????????????????# #?????????#?? | | ??????????????????????????????????# #???????????? | | ??????????????????????????????????# #???????????? | | ??????????????????????????????????# #???????????? | | ??????????????????????????###?????# #???????????? | | ?###??#####################T####### #???????????? | | ## ### % #???????????? | | # ## % #???????????? | | *## ######### %#???????????? | | # % #???????# #???????????? | | # ## #???????# #???????????? | | ####### #???????# #???????????? | | ??????# #???????# #???????????? | | ??????# #???????# #???????????? | | ??????# @#???????# #???????????? | | ??????# < #???????# #???????????? | | ??????# #???????# #???????????? | | #####?# #???????#^^#???????????? | | #"T"### #???????#^ #???????????? | | #" #???????# #???????????? | | ####### #???????# #???????????? | | ??????# #???????# #???????????? | | ??????# Y #???????# #???????????? | | ??????# Y #???????# #???????????? | | ??????# Y!! #???????? #???????????? | | ??????######### ####! ###???????? #???????????? | | ??????????????# #??#####?????????? #???????????? | | ??""########### ################## #???????????? | | =!% *=%/ #???????????? | | = = !/= #???????????? | | ########################## ##########????????????? | | ?????????????????????????????????????????????????? | | ?????????????????????????????????????????????????? | | ?????????????????????????????????????????????????? | | ?????????????????????????????????????????????????? | | ?????????????????????????????????????????????????? | | ?????????????????????????????????????????????????? | | ?????????????????????????????????????????????????? | | ?????????????????????????????????????????????????? | +----------------------------------------------------+ Best States ------------- Heat Dissipation 45 Energy Generation 14 Energy Capacity 250 Matter Stores 300 Matter Capacity 450 Sight Range 20 Robot Scan Range 14 Terrain Scan Range 14 Terrain Scan Density 10 ECM Strength 1 Armor Coverage 375 Resistance: TH 20 Propulsion Shielding 66 Weapon Shielding 33 Evasion (%) 50 Melee Accuracy 5 Recoil Reduction 3 Defensive Hacking 10 Item Schematics ----------------- Imp. Light Armor Plating | -8/Materials | Hacked Robot Schematics ------------------ None Fabricated ------------ Nothing Repaired ---------- Nothing Studied --------- None Alien Tech Used ----------------- None Achievements -------------- None Challenges ------------ None Game ------ Seed LayeredMeleeRipteeth Manual? 0 Play Time 00:44:10 Cumulative 426.3 hours Start 2025.11.02 @ 20:09:30 End 2025.11.03 @ 05:21:54 Sessions 3 Manual Loads 0 Difficulty Rogue Special Mode None Game No. 165 Rogue 162 Adventurer 3 Explorer 0 Win Type - Total 0 Types 0/0/0/0/0/0/0/0/0/0 Lore% 27 Gallery% 52 Achievement% 32 Wizard Run 0 Options --------- Layout 2 ASCII 0 Keyboard 0 Movement Mouse Keybinds 0 Fullscreen 1 Font 24/Smallcaps Map View 50x44 Zoom Use 0% Tactical HUD 1 Map Filters NONE Filters NONE Steam 1 RUN: acf0a6b6-4808-4f4a-b1e7-2566c7abd651